fUST/lending_fUST_20260413
["ID","MTS","AMOUNT","RATE_DAILY","PERIOD"]
[420393306,1776076239227,-222.9,0.00012329,2]
[420393307,1776076239238,-1619.03,0.00012329,2]
[420393308,1776076239258,-1349.19,0.00012329,2]
[420393309,1776076239289,-1124.32,0.00012329,2]
[420393310,1776076239313,-936.94,0.00012329,2]
[420393311,1776076239358,-780.78,0.00012329,2]
[420393312,1776076239370,-650.65,0.00012329,2]
[420393313,1776076239396,-542.21,0.00012329,2]
[420393315,1776076239426,-451.84,0.00012329,2]
[420393317,1776076239441,-376.53,0.00012329,2]
[420393319,1776076239459,-313.78,0.00012329,2]
[420393321,1776076239484,-261.48,0.00012329,2]
[420393323,1776076239499,-217.9,0.00012329,2]
[420393324,1776076239525,-181.59,0.00012329,2]
[420393325,1776076239551,-151.32,0.00012329,2]
[420393326,1776076239567,-756.63,0.00012329,2]
[420393327,1776076239607,-325.4170494,0.00013041,2]
[420393328,1776076239617,-500.0,0.00013276,2]
[420393329,1776076239629,-500.0,0.00013373,2]
[420393330,1776076239646,-158.21626113,0.00013373,2]
[420393331,1776076239659,-158.21626112,0.00013373,2]
[420393332,1776076239670,-500.0,0.00013373,2]
[420393333,1776076239679,-500.0,0.00013373,2]
[420393334,1776076239690,-500.0,0.00013373,2]
[420393335,1776076239703,-500.0,0.00013373,2]
[420393336,1776076239713,-500.0,0.00013373,2]
[420393337,1776076239722,-500.0,0.00013373,2]
[420393338,1776076239731,-500.0,0.00013373,2]
[420393340,1776076239748,-1566.9444333,0.00013386,2]
[420393341,1776076239757,-500.0,0.00013399,2]
[420393343,1776076239767,-291.82509096,0.00013399,2]
[420393344,1776076239781,-239.64383167,0.00013399,2]
[420393345,1776076239793,-160.37880289,0.00013399,2]
[420393346,1776076239803,-500.0,0.00013399,2]
[420393347,1776076239814,-500.0,0.00013399,2]
[420393348,1776076239831,-315.22707032,0.00013399,2]
[420393349,1776076239847,-500.0,0.00013399,2]
[420393350,1776076239858,-165.60157332,0.00013399,2]
[420393351,1776076239882,-500.0,0.00013399,2]
[420393352,1776076239892,-500.0,0.00013399,2]
[420393353,1776076239909,-250.0,0.00013399,2]
[420393354,1776076239923,-500.0,0.00013399,2]
[420393355,1776076239933,-500.0,0.00013399,2]
[420393356,1776076239947,-500.0,0.00013399,2]
[420393357,1776076239963,-15485.05973821,0.000134,2]
[420393364,1776076243875,-48919.4196524,0.000134,2]
[420393378,1776076247065,-34116.70212801,0.000134,2]
[420393405,1776076874588,500.0,1.31e-05,2]
[420393406,1776076874627,500.0,1.31e-05,2]
[420393407,1776076874676,500.0,1.31e-05,2]
[420393408,1776076874707,500.0,1.31e-05,2]
[420393409,1776076874740,500.0,1.31e-05,2]
[420393410,1776076874770,500.0,1.31e-05,2]
[420393411,1776076874810,500.0,1.31e-05,2]
[420393412,1776076874841,500.0,1.31e-05,2]
[420393413,1776076874878,500.0,1.31e-05,2]
[420393414,1776076874916,500.0,1.31e-05,2]
[420393415,1776076874959,500.0,1.31e-05,2]
[420393416,1776076875005,36971.43241904,1.31e-05,2]
[420393507,1776077432653,-1119.71724561,7.349e-05,2]
[420393508,1776077432668,-3880.28275439,7.349e-05,2]
[420393509,1776077432679,-524.0,7.349e-05,2]
[420393510,1776077432691,-152.0,7.498e-05,2]
[420393511,1776077432710,-152.0,7.498e-05,2]
[420393512,1776077432724,-152.0,7.498e-05,2]
[420393513,1776077432734,-152.0,7.498e-05,2]
[420393514,1776077432760,-152.0,7.498e-05,2]
[420393515,1776077432770,-152.0,7.498e-05,2]
[420393516,1776077432783,-152.0,7.498e-05,2]
[420393517,1776077432805,-251.93589074,0.00010392,2]
[420393518,1776077432814,-1672.78135487,0.00011355,2]
[420393519,1776077432999,-2251.31959154,0.00011355,2]
[420393709,1776077441673,-941.81791522,0.00011355,2]
[420393711,1776077441688,-8254.96808317,0.00011355,2]
[420393714,1776077441707,-154.14977173,0.00011618,2]
[420393716,1776077441718,-2857.5548364,0.00011854,2]
[420393718,1776077441732,-2317.33602772,0.0001218,2]
[420393720,1776077441748,-5067.50611769,0.0001228,2]
[420393722,1776077441771,-1012.85,0.00012329,2]
[420393724,1776077441787,-844.04,0.00012329,2]
[420393726,1776077441796,-703.37,0.00012329,2]
[420393727,1776077441821,-586.14,0.00012329,2]
[420393729,1776077441836,-488.45,0.00012329,2]
[420393732,1776077441848,-407.04,0.00012329,2]
[420393733,1776077441867,-339.2,0.00012329,2]
[420393735,1776077441880,-282.67,0.00012329,2]
[420393738,1776077441923,-235.56,0.00012329,2]
[420393740,1776077441965,-196.3,0.00012329,2]
[420393742,1776077442023,-163.58,0.00012329,2]
[420393744,1776077442055,-817.92,0.00012329,2]
[420393745,1776077442065,-5614.68464202,0.0001238,2]
[420393748,1776077442091,-675.82137171,0.00012544,2]
[420393750,1776077442125,-2700.58220136,0.00012544,2]
[420393752,1776077442159,-256.48268005,0.00012544,2]
[420393754,1776077442216,-167.52922209,0.00012673,2]
[420393756,1776077442240,-158.01624415,0.00012673,2]
[420393758,1776077442252,-158.21626472,0.00012673,2]
[420393760,1776077442262,-500.0,0.00012673,2]
[420393762,1776077442281,-160.21149199,0.00012673,2]
[420393764,1776077442301,-500.0,0.00012673,2]
[420393766,1776077442311,-160.01644977,0.00012673,2]
[420393769,1776077442326,-500.0,0.00012673,2]
[420393771,1776077442339,-158.21654604,0.00012673,2]
[420393773,1776077442352,-441.99881897,0.00012673,2]
[420393775,1776077442365,-58.00118103,0.00012673,2]
[420393777,1776077442375,-500.0,0.00012673,2]
[420393779,1776077442387,-500.0,0.00012673,2]
[420393781,1776077442402,-500.0,0.00012673,2]
[420393783,1776077442428,-500.0,0.00012673,2]
[420393785,1776077442438,-500.0,0.00012673,2]
[420393787,1776077442448,-500.0,0.00012673,2]
[420393789,1776077442478,-500.0,0.00012676,2]
[420393791,1776077442487,-500.0,0.00012676,2]
[420393793,1776077442497,-500.0,0.00012676,2]
[420393795,1776077442522,-500.0,0.00012676,2]
[420393797,1776077442533,-500.0,0.00012676,2]
[420393799,1776077442558,-500.0,0.00012676,2]
[420393801,1776077442568,-500.0,0.00012676,2]
[420393803,1776077442577,-500.0,0.00012676,2]
[420393805,1776077442595,-274.98572415,0.00012676,2]
[420393806,1776077442621,-500.0,0.00012676,2]
[420393808,1776077442651,-500.0,0.00012676,2]
[420393811,1776077442662,-209.57731172,0.00012676,2]
[420393813,1776077442687,-500.0,0.00012676,2]
[420393815,1776077442697,-498.80863322,0.00012676,2]
[420393816,1776077442717,-500.0,0.00012676,2]
[420393818,1776077442730,-500.0,0.00012676,2]
[420393821,1776077442740,-451.01396897,0.00012676,2]
[420393823,1776077442760,-261.3868863,0.00012676,2]
[420393825,1776077442776,-500.0,0.00012676,2]
[420393827,1776077442786,-500.0,0.00012676,2]
[420393829,1776077442795,-500.0,0.00012676,2]
[420393831,1776077442811,-500.0,0.00012676,2]
[420393833,1776077442822,-541.84625641,0.00012676,2]
[420393835,1776077442833,-500.0,0.00012676,2]
[420393837,1776077442846,-238.30461646,0.00012676,2]
[420393839,1776077442859,-500.0,0.00012676,2]
[420393840,1776077442869,-500.0,0.00012676,2]
[420393843,1776077442885,-500.0,0.00012676,2]
[420393845,1776077442895,-500.0,0.00012676,2]
[420393847,1776077442905,-500.0,0.00012676,2]
[420393849,1776077442915,-500.0,0.00012676,2]
[420393850,1776077442931,-500.0,0.00012676,2]
[420393852,1776077442941,-500.0,0.00012676,2]
[420393854,1776077442951,-500.0,0.00012676,2]
[420393857,1776077442967,-500.0,0.00012676,2]
[420393858,1776077442979,-500.0,0.00012676,2]
[420393861,1776077442989,-500.0,0.00012676,2]
[420393863,1776077443003,-500.0,0.00012676,2]
[420393865,1776077443013,-151.0,0.00012677,2]
[420393867,1776077443023,-151.0,0.00012677,2]
[420393869,1776077443037,-151.0,0.00012677,2]
[420393871,1776077443046,-204.27756367,0.00012677,2]
[420393873,1776077443055,-279.97101354,0.00012677,2]
[420393875,1776077443066,-500.0,0.00012677,2]
[420393877,1776077443076,-500.0,0.00012677,2]
[420393878,1776077443087,-500.0,0.00012677,2]
[420393880,1776077443097,-162.27751595,0.00012677,2]
[420393883,1776077443107,-500.0,0.00012677,2]
[420393885,1776077443117,-500.0,0.00012677,2]
[420393887,1776077443127,-500.0,0.00012677,2]
[420393889,1776077443137,-500.0,0.00012677,2]
[420393891,1776077443147,-600.0,0.00012677,2]
[420393893,1776077443157,-151.0,0.00012678,2]
[420393895,1776077443166,-151.0,0.00012678,2]
[420393897,1776077443176,-151.0,0.00012678,2]
[420393900,1776077443185,-93048.55700144,0.00012678,2]
[420393921,1776077443374,-16942.78424464,0.00012678,2]
[420393923,1776077443389,-15984.68880097,0.00012678,2]
[420393927,1776077443427,-63355.18999503,0.00012678,2]
[420393929,1776077443439,-1019.05201729,0.00012678,2]
[420393931,1776077443451,-657.01944389,0.00012678,2]
[420393934,1776077443467,-6950.0,0.00012678,2]
[420393985,1776077444188,-5352.49999837,0.00012678,2]
[420393988,1776077444203,-468.942,0.00012678,2]
[420393990,1776077444224,-1179.67946753,0.00012678,2]
[420393992,1776077444236,-3256.23330091,0.00012678,2]
[420394129,1776077447026,-74259.82848203,0.00012678,2]
[420394130,1776077447047,-24700.2526107,0.00012678,2]
[420394131,1776077447060,-276.5150003,0.00012678,2]
[420394132,1776077447073,-45966.56643804,0.00012678,2]
[420394310,1776078099897,-300.0,0.00010479,2]
[420394368,1776078632132,-4564.33,0.00010165,2]
[420394372,1776078632147,-435.67,0.00010165,2]
[420394374,1776078632163,-562.0,0.00010165,2]
[420394376,1776078632177,-1200.0,0.00010372,2]
[420394377,1776078632191,-300.0,0.00010802,2]
[420394380,1776078632209,-300.0,0.00010802,2]
[420394382,1776078632229,-2202.33,0.00010803,2]
[420394384,1776078632248,-3996.37224212,0.00010803,2]
[420394386,1776078632271,-49.22319824,0.00011616,2]
[420394759,1776078638493,-1580.14532001,0.00011516,2]
[420394760,1776078638503,-107.96873144,0.00011616,2]
[420394761,1776078638515,-500.0,0.00011616,2]
[420394762,1776078638538,-150.81894981,0.00011616,2]
[420394763,1776078638548,-524.03577612,0.00011616,2]
[420394764,1776078638560,-1544.47,0.00011616,2]
[420394765,1776078638570,-500.0,0.00011616,2]
[420394766,1776078638584,-500.0,0.00011616,2]
[420394767,1776078638599,-506.76386822,0.00011616,2]
[420394768,1776078638609,-500.0,0.00011616,2]
[420394769,1776078638619,-500.0,0.00011616,2]
[420394770,1776078638633,-500.0,0.00011616,2]
[420394771,1776078638643,-218.3129302,0.00011616,2]
[420394772,1776078638652,-518.39105161,0.00011616,2]
[420394773,1776078638661,-500.0,0.00011616,2]
[420394774,1776078638677,-500.0,0.00011617,2]
[420394775,1776078638687,-500.0,0.00011617,2]
[420394776,1776078638697,-500.0,0.00011853,2]
[420394777,1776078638707,-516.2040328,0.00011872,2]
[420394778,1776078638718,-508.39296506,0.00011872,2]
[420394779,1776078638728,-300.0,0.00011873,2]
[420394780,1776078638738,-500.0,0.0001189,2]
[420394781,1776078638751,-1544.47,0.0001189,2]
[420394782,1776078638762,-500.0,0.0001189,2]
[420394783,1776078638771,-520.72957667,0.0001189,2]
[420394784,1776078638784,-500.0,0.0001189,2]
[420394785,1776078638794,-560.54325374,0.0001189,2]
[420394786,1776078638805,-500.0,0.0001189,2]
[420394787,1776078638819,-504.93,0.00011891,2]
[420394788,1776078638829,-474.49464623,0.00012093,2]
[420394789,1776078638839,-1896.08060632,0.00012093,2]
[420394790,1776078638850,-500.0,0.00012127,2]
[420394791,1776078638864,-155.11699228,0.00012164,2]
[420394792,1776078638878,-1544.47,0.00012164,2]
[420394793,1776078638891,-173.35852789,0.00012164,2]
[420394794,1776078638910,-500.0,0.00012164,2]
[420394795,1776078638920,-500.0,0.00012164,2]
[420394796,1776078638931,-325.1783322,0.00012239,2]
[420394797,1776078638964,-696.33,0.00012329,2]
[420394798,1776078638974,-580.28,0.00012329,2]
[420394799,1776078638984,-483.56,0.00012329,2]
[420394800,1776078638995,-402.97,0.00012329,2]
[420394801,1776078639009,-335.81,0.00012329,2]
[420394802,1776078639019,-279.84,0.00012329,2]
[420394803,1776078639029,-233.2,0.00012329,2]
[420394804,1776078639044,-194.33,0.00012329,2]
[420394805,1776078639054,-161.95,0.00012329,2]
[420394806,1776078639064,-809.75,0.00012329,2]
[420394807,1776078639080,-543.04078803,0.00012401,2]
[420394808,1776078639090,-304.2560685,0.00012423,2]
[420394809,1776078639099,-500.0,0.00012423,2]
[420394810,1776078639112,-500.0,0.00012423,2]
[420394811,1776078639125,-303.75505397,0.00012423,2]
[420394812,1776078639135,-500.0,0.00012423,2]
[420394813,1776078639148,-500.0,0.00012423,2]
[420394814,1776078639157,-371.29262822,0.00012423,2]
[420394815,1776078639173,-130.63365595,0.00012423,2]
[420394816,1776078639184,-336.45935232,0.00012423,2]
[420394817,1776078639194,-500.0,0.00012423,2]
[420394818,1776078639206,-500.0,0.00012423,2]
[420394819,1776078639219,-518.65053849,0.00012424,2]
[420394820,1776078639229,-208.7767206,0.00012424,2]
[420394821,1776078639245,-507.40734063,0.00012424,2]
[420394822,1776078639262,-504.09928809,0.00012424,2]
[420394823,1776078639272,-503.04961474,0.00012424,2]
[420394824,1776078639282,-500.0,0.00012424,2]
[420394825,1776078639308,-504.42090503,0.00012424,2]
[420394826,1776078639349,-504.94355045,0.00012424,2]
[420394827,1776078639399,-508.196662,0.00012424,2]
[420394828,1776078639411,-518.53665506,0.00012424,2]
[420394830,1776078639459,-510.42204108,0.00012424,2]
[420394832,1776078639474,-500.0,0.00012424,2]
[420394834,1776078639506,-503.76240403,0.00012424,2]
[420394835,1776078639523,-505.54241792,0.00012424,2]
[420394838,1776078639554,-504.49706852,0.00012424,2]
[420394839,1776078639570,-500.0,0.00012424,2]
[420394840,1776078639606,-500.0,0.00012424,2]
[420394841,1776078639618,-500.0,0.00012424,2]
[420394842,1776078639644,-505.53081839,0.00012424,2]
[420394843,1776078639656,-504.66005138,0.00012424,2]
[420394844,1776078639671,-517.08925774,0.00012424,2]
[420394845,1776078639691,-509.79524088,0.00012424,2]
[420394846,1776078639703,-500.0,0.00012424,2]
[420394847,1776078639727,-502.60547533,0.00012424,2]
[420394848,1776078639743,-500.0,0.00012424,2]
[420394849,1776078639781,-500.0,0.00012424,2]
[420394850,1776078639810,-500.0,0.00012424,2]
[420394852,1776078639839,-500.0,0.00012424,2]
[420394853,1776078639897,-506.24282013,0.00012424,2]
[420394855,1776078639954,-500.0,0.00012424,2]
[420394856,1776078639975,-163.97775633,0.00012424,2]
[420394857,1776078639999,-500.0,0.00012424,2]
[420394858,1776078640013,-630.3,0.00012424,2]
[420394859,1776078640033,-500.0,0.00012424,2]
[420394860,1776078640052,-500.0,0.00012424,2]
[420394861,1776078640066,-1544.47,0.00012438,2]
[420394862,1776078640099,-374.71329392,0.00012438,2]
[420394863,1776078640110,-500.0,0.00012438,2]
[420394864,1776078640150,-516.15439363,0.00012499,2]
[420394865,1776078640165,-625.16403894,0.00012499,2]
[420394866,1776078640217,-500.0,0.00012499,2]
[420394867,1776078640234,-500.0,0.00012499,2]
[420394868,1776078640247,-161.48337776,0.00012499,2]
[420394869,1776078640265,-500.0,0.00012499,2]
[420394870,1776078640283,-500.0,0.00012499,2]
[420394871,1776078640297,-500.0,0.00012499,2]
[420394872,1776078640316,-500.0,0.00012499,2]
[420394873,1776078640334,-5686.48,0.00012499,2]
[420394874,1776078640347,-500.0,0.00012499,2]
[420394875,1776078640370,-500.0,0.00012499,2]
[420394876,1776078640383,-402.22949851,0.00012499,2]
[420394877,1776078640395,-502.8983259,0.00012499,2]
[420394878,1776078640413,-777.54,0.00012499,2]
[420394879,1776078640426,-782.76,0.00012499,2]
[420394880,1776078640436,-290.39757735,0.00012499,2]
[420394881,1776078640447,-500.0,0.00012499,2]
[420394882,1776078640458,-500.0,0.00012499,2]
[420394883,1776078640470,-340.03539741,0.00012499,2]
[420394884,1776078640481,-500.0,0.00012573,2]
[420394885,1776078640495,-189.42745425,0.00012573,2]
[420394886,1776078640510,-500.0,0.00012573,2]
[420394887,1776078640520,-500.0,0.00012573,2]
[420394888,1776078640534,-249.015,0.00012573,2]
[420394889,1776078640546,-1001.07,0.000126,2]
[420394890,1776078640559,-151.0,0.000126,2]
[420394891,1776078640571,-151.0,0.000126,2]
[420394892,1776078640588,-274.53394144,0.00012675,2]
[420394893,1776078640602,-500.0,0.00012675,2]
[420394894,1776078640621,-500.0,0.00012675,2]
[420394895,1776078640633,-233.59426117,0.00012675,2]
[420394896,1776078640663,-500.0,0.00012675,2]
[420394897,1776078640681,-500.0,0.00012675,2]
[420394898,1776078640693,-500.0,0.00012675,2]
[420394899,1776078640710,-500.0,0.00012675,2]
[420394900,1776078640721,-500.0,0.00012675,2]
[420394901,1776078640732,-13969.89521825,0.00012676,2]
[420394902,1776078640759,-35670.89138405,0.00012676,2]
[420394903,1776078640775,-1175.208325,0.00012678,2]
[420394904,1776078640789,-6709.04169088,0.0001268,2]
[420394905,1776078640804,-152.0,0.00012681,7]
[420394906,1776078640819,-152.0,0.00012681,7]
[420394907,1776078640833,-152.0,0.00012681,7]
[420394908,1776078640847,-152.0,0.00012681,7]
[420394909,1776078640868,-500.0,0.00012698,2]
[420394910,1776078640880,-500.0,0.00012698,2]
[420394911,1776078640892,-500.0,0.00012698,2]
[420394912,1776078640914,-500.0,0.00012698,2]
[420394913,1776078640932,-500.0,0.00012698,2]
[420394914,1776078640948,-500.0,0.00012698,2]
[420394915,1776078640964,-500.0,0.00012698,2]
[420394916,1776078640980,-500.0,0.00012698,2]
[420394917,1776078640994,-500.0,0.00012698,2]
[420394918,1776078641008,-500.0,0.00012698,2]
[420394919,1776078641036,-500.0,0.00012698,2]
[420394920,1776078641049,-1544.47,0.00012712,2]
[420394921,1776078641067,-500.0,0.00012712,2]
[420394922,1776078641079,-688.38290216,0.00012729,2]
[420394923,1776078641092,-2750.77807705,0.00012729,2]
[420394924,1776078641111,-626.08144491,0.00012773,2]
[420394925,1776078641124,-500.0,0.00012773,2]
[420394926,1776078641141,-500.0,0.00012773,2]
[420394927,1776078641157,-500.0,0.00012773,2]
[420394928,1776078641174,-500.0,0.00012773,2]
[420394929,1776078641194,-5686.48,0.00012773,2]
[420394930,1776078641212,-234.94320972,0.00012773,2]
[420394931,1776078641226,-243.55942549,0.00012773,2]
[420394932,1776078641243,-777.54,0.00012773,2]
[420394933,1776078641256,-782.76,0.00012773,2]
[420394934,1776078641267,-186.57,0.00012773,2]
[420394935,1776078641283,-7256.22021531,0.0001278,2]
[420394936,1776078641307,-500.0,0.00012972,2]
[420394937,1776078641318,-409.80831225,0.00012972,2]
[420394938,1776078641329,-252.81691075,0.00012972,2]
[420394939,1776078641345,-294.43401195,0.00012972,2]
[420394940,1776078641357,-500.0,0.00012972,2]
[420394941,1776078641368,-500.0,0.00012972,2]
[420394942,1776078641379,-500.0,0.00012972,2]
[420394943,1776078641399,-500.0,0.00012972,2]
[420394944,1776078641411,-500.0,0.00012972,2]
[420394945,1776078641422,-500.0,0.00012972,2]
[420394946,1776078641437,-1544.47,0.00012986,2]
[420394947,1776078641447,-500.0,0.00012986,2]
[420394948,1776078641459,-500.0,0.00013047,2]
[420394949,1776078641478,-500.0,0.00013047,2]
[420394950,1776078641493,-500.0,0.00013047,2]
[420394951,1776078641507,-500.0,0.00013047,2]
[420394952,1776078641522,-5686.48,0.00013047,2]
[420394953,1776078641539,-777.54,0.00013047,2]
[420394954,1776078641567,-782.76,0.00013047,2]
[420394955,1776078641585,-325.1311657,0.00013061,2]
[420394956,1776078641597,-1000.0,0.00013121,2]
[420394957,1776078641607,-250.0,0.00013151,2]
[420394958,1776078641619,-325.2214703,0.00013221,2]
[420394959,1776078641638,-351.85,0.00013246,2]
[420394960,1776078641649,-500.0,0.00013246,2]
[420394961,1776078641663,-500.0,0.00013246,2]
[420394962,1776078641682,-500.0,0.00013246,2]
[420394963,1776078641693,-199.60147988,0.00013246,2]
[420394964,1776078641711,-500.0,0.00013246,2]
[420394965,1776078641731,-500.0,0.00013246,2]
[420394966,1776078641761,-1544.47,0.0001326,2]
[420394967,1776078641776,-500.0,0.0001326,2]
[420394968,1776078641799,-500.0,0.00013321,2]
[420394969,1776078641820,-500.0,0.00013321,2]
[420394970,1776078641839,-500.0,0.00013321,2]
[420394971,1776078641863,-500.0,0.00013321,2]
[420394972,1776078641894,-5686.48,0.00013321,2]
[420394973,1776078641905,-782.76,0.00013321,2]
[420394974,1776078641927,-777.54,0.00013321,2]
[420394975,1776078641963,-986.59148025,0.00013399,2]
[420394976,1776078641976,-500.0,0.0001352,2]
[420394977,1776078641992,-500.0,0.0001352,2]
[420394978,1776078642007,-500.0,0.0001352,2]
[420394979,1776078642020,-500.0,0.0001352,2]
[420394980,1776078642045,-500.0,0.0001352,2]
[420394981,1776078642056,-1544.47,0.00013534,2]
[420394982,1776078642070,-500.0,0.00013534,2]
[420394983,1776078642087,-500.0,0.00013595,2]
[420394984,1776078642098,-468.30988015,0.00013595,2]
[420394985,1776078642110,-500.0,0.00013595,2]
[420394986,1776078642123,-500.0,0.00013595,2]
[420394987,1776078642134,-5686.48,0.00013595,2]
[420394988,1776078642146,-782.76,0.00013595,2]
[420394989,1776078642158,-777.54,0.00013595,2]
[420394990,1776078642170,-1500.0,0.00013668,2]
[420394991,1776078642184,-500.0,0.00013673,2]
[420394992,1776078642193,-500.0,0.00013673,2]
[420394993,1776078642204,-503.15988213,0.00013673,2]
[420394994,1776078642213,-261.21125069,0.00013673,2]
[420394997,1776078642463,-500.0,0.00013673,2]
[420394999,1776078642479,-500.0,0.00013673,2]
[420395001,1776078642494,-500.0,0.00013673,2]
[420395003,1776078642504,-500.0,0.00013673,2]
[420395005,1776078642520,-806.27821974,0.00013691,2]
[420395007,1776078642539,-151.0,0.00013699,2]
[420395009,1776078642551,-151.0,0.00013699,2]
[420395011,1776078642561,-151.0,0.00013699,2]
[420395013,1776078642578,-151.0,0.00013699,2]
[420395015,1776078642590,-151.0,0.00013699,2]
[420395017,1776078642602,-151.0,0.00013699,2]
[420395019,1776078642635,-151.0,0.00013699,2]
[420395021,1776078642645,-151.0,0.00013699,2]
[420395037,1776078642888,-151.0,0.00013699,2]
[420395039,1776078642903,-1367.061979,0.00013699,2]
[420395041,1776078642915,-1367.061979,0.00013699,2]
[420395043,1776078642925,-1367.061979,0.00013699,2]
[420395045,1776078642936,-1367.061979,0.00013699,2]
[420395047,1776078642953,-1367.061979,0.00013699,2]
[420395049,1776078642965,-1367.061979,0.00013699,2]
[420395052,1776078642978,-1367.061979,0.00013699,2]
[420395053,1776078642995,-1367.061979,0.00013699,2]
[420395055,1776078643004,-156.59673031,0.00013699,2]
[420395058,1776078643018,-1210.46524869,0.00013699,2]
[420395060,1776078643035,-1367.061979,0.00013699,2]
[420395062,1776078643050,-1367.061979,0.00013699,2]
[420395064,1776078643059,-1367.061979,0.00013699,2]
[420395066,1776078643073,-247.588483,0.00013699,2]
[420395068,1776078643088,-247.588483,0.00013699,2]
[420395070,1776078643098,-247.588483,0.00013699,2]
[420395071,1776078643117,-247.588483,0.00013699,2]
[420395073,1776078643131,-247.588483,0.00013699,2]
[420395074,1776078643142,-247.588483,0.00013699,2]
[420395075,1776078643157,-247.588483,0.00013699,2]
[420395076,1776078643171,-247.588483,0.00013699,2]
[420395077,1776078643182,-247.588483,0.00013699,2]
[420395079,1776078643194,-247.588483,0.00013699,2]
[420395080,1776078643208,-247.588483,0.00013699,2]
[420395081,1776078643218,-247.588483,0.00013699,2]
[420395082,1776078643231,-5350.381374,0.00013699,2]
[420395083,1776078643249,-5350.381374,0.00013699,2]
[420395084,1776078643258,-5350.381374,0.00013699,2]
[420395085,1776078643268,-5350.381374,0.00013699,2]
[420395086,1776078643285,-5350.381374,0.00013699,2]
[420395087,1776078643294,-5350.381374,0.00013699,2]
[420395088,1776078643303,-5350.381374,0.00013699,2]
[420395089,1776078643316,-5350.381374,0.00013699,2]
[420395090,1776078643327,-5350.381374,0.00013699,2]
[420395091,1776078643337,-5350.381374,0.00013699,2]
[420395092,1776078643350,-5350.381374,0.00013699,2]
[420395093,1776078643361,-5350.381374,0.00013699,2]
[420395094,1776078643379,-1078.758051,0.00013699,2]
[420395095,1776078643389,-1078.758051,0.00013699,2]
[420395096,1776078643398,-1078.758051,0.00013699,2]
[420395097,1776078643417,-1078.758051,0.00013699,2]
[420395098,1776078643427,-1078.758051,0.00013699,2]
[420395099,1776078643452,-1078.758051,0.00013699,2]
[420395100,1776078643465,-1078.758051,0.00013699,2]
[420395101,1776078643474,-1078.758051,0.00013699,2]
[420395102,1776078643491,-1078.758051,0.00013699,2]
[420395103,1776078643501,-1078.758051,0.00013699,2]
[420395104,1776078643515,-1078.758051,0.00013699,2]
[420395105,1776078643525,-1078.758051,0.00013699,2]
[420395106,1776078643539,-2256.890618,0.00013699,2]
[420395107,1776078643549,-2256.890618,0.00013699,2]
[420395108,1776078643559,-2256.890618,0.00013699,2]
[420395109,1776078643568,-2256.890618,0.00013699,2]
[420395110,1776078643580,-2256.890618,0.00013699,2]
[420395111,1776078643590,-298.253568,0.00013699,2]
[420395112,1776078643599,-298.253568,0.00013699,2]
[420395113,1776078643615,-2256.890618,0.00013699,2]
[420395114,1776078643624,-298.253568,0.00013699,2]
[420395115,1776078643633,-2256.890618,0.00013699,2]
[420395116,1776078643643,-2256.890618,0.00013699,2]
[420395118,1776078643653,-298.253568,0.00013699,2]
[420395120,1776078643662,-2256.890618,0.00013699,2]
[420395121,1776078643671,-298.253568,0.00013699,2]
[420395122,1776078643680,-2256.890618,0.00013699,2]
[420395123,1776078643689,-298.253568,0.00013699,2]
[420395124,1776078643699,-2256.890618,0.00013699,2]